bitfinex-derivatives/quotes_SOLF0:USTF0_20251202
["timestamp","ask_amount","ask_price","bid_price","bid_amount"]
[1764679146872,7.005,128.49,128.47,17.63119357]
[1764679147678,0.05062329,128.49,128.48,3.15]
[1764679148778,0.05062329,128.49,128.48,24.63659357]
[1764679148975,0.05062329,128.49,128.48,10.1554]
[1764679153082,0.05062329,128.49,128.48,3.15]
[1764679156688,0.05062329,128.49,128.48,10.1554]
[1764679168708,7.0031,128.53,128.5,3.32]
[1764679168890,3.22,128.55,128.53,3.32]
[1764679169599,3.22,128.55,128.53,17.7723542]
[1764679169796,3.26920144,128.55,128.53,17.82478466]
[1764679170200,3.26920144,128.55,128.53,3.37243046]
[1764679170401,10.27100144,128.55,128.53,3.37243046]
[1764679174101,3.26920144,128.55,128.53,17.82478466]
[1764679174402,3.26920144,128.55,128.53,3.37243046]
[1764679174796,3.26920144,128.55,128.53,17.82478466]
[1764679175197,3.26920144,128.55,128.53,3.37243046]
[1764679175422,0.04920144,128.55,128.54,3.32]
[1764679176203,0.04920144,128.55,128.53,21.50748466]
[1764679176204,3.26920144,128.55,128.53,3.37243046]
[1764679181503,0.04920144,128.55,128.53,3.37243046]
[1764679182908,0.04920144,128.55,128.54,3.15]
[1764679192016,0.04920144,128.55,128.54,17.6023542]
[1764679192701,3.28,128.6,128.57,3.15]
[1764679192899,3.28,128.6,128.57,17.58503117]
[1764679193099,333.64390021,128.7,128.56,1.98789498]
[1764679193100,3.28,128.65,128.59,3.15]
[1764679193312,6.9962,128.65,128.6,6.9987]
[1764679193513,3.28,128.64,128.61,3.15]
[1764679193712,3.33618064,128.64,128.61,3.19969635]
[1764679194016,10.33288064,128.64,128.61,3.19969635]
[1764679194202,3.28,128.63,128.61,3.19969635]
[1764679195320,0.05618064,128.64,128.62,6.9977]
[1764679195507,0.05618064,128.64,128.63,3.15]
[1764679196014,3.28,128.67,128.63,10.1471]
[1764679196215,3.28,128.67,128.64,3.15]
[1764679197009,3.33123019,128.67,128.64,3.20976791]
[1764679197706,0.05123019,128.67,128.65,1.98789498]
[1764679197908,3.28,128.73,128.66,3.15]
[1764679198110,3.28,128.73,128.67,3.15]
[1764679198422,3.28,128.73,128.68,3.15]
[1764679199020,0.05016134,128.72,128.7,3.15]
[1764679199315,3.28,128.75,128.72,3.15]
[1764679199923,3.28,128.75,128.71,3.15]
[1764679200122,3.33690883,128.74,128.72,0.04935513]
[1764679200316,0.05690883,128.74,128.72,3.19935513]
[1764679200530,0.05690883,128.74,128.73,5.13789498]
[1764679200818,3.28,128.79,128.74,3.15]
[1764679201214,3.28,128.77,128.71,6.9928]
[1764679201622,3.28,128.77,128.71,10.1428]
[1764679201923,0.0523243,128.75,128.73,3.20995942]
[1764679202121,0.0523243,128.75,128.74,3.15]
[1764679202325,3.3323243,128.75,128.73,65.20995942]
[1764679202627,0.0523243,128.75,128.73,65.20995942]
[1764679202816,3.3323243,128.75,128.73,3.20995942]
[1764679203016,3.3323243,128.75,128.73,0.05995942]
[1764679205328,10.3232243,128.75,128.73,0.05995942]
[1764679205525,3.28,128.74,128.73,0.05995942]
[1764679206449,3.28,128.74,128.68,1.98789498]
[1764679206450,3.28,128.72,128.68,3.15]
[1764679206648,3.28,128.72,128.67,10.145]
[1764679206840,3.28,128.72,128.68,3.15]
[1764679207150,3.28,128.71,128.68,3.15]
[1764679207448,3.32954204,128.71,128.68,3.20338702]
[1764679208252,3.32954204,128.71,128.68,0.05338702]
[1764679208253,10.32274204,128.71,128.68,0.05338702]
[1764679208547,3.28,128.7,128.68,0.05338702]
[1764679212052,10.2736,128.7,128.68,0.05338702]
[1764679212851,0.04954204,128.71,128.68,3.41338702]
[1764679216455,3.10954204,128.71,128.68,3.41338702]
[1764679216957,0.04954204,128.71,128.68,3.41338702]
[1764679218544,108.5981,128.93,128.8,132.0492]
[1764679218743,108.587,128.94,128.85,3.36]
[1764679219060,108.5771,128.95,128.86,5.34789498]
[1764679219553,0.05757,128.92,128.89,0.04979482]
[1764679220750,3.06,128.91,128.89,0.04979482]
[1764679221852,3.06,128.9,128.83,3.36]
[1764679222854,3.11069185,128.88,128.85,0.05137695]
[1764679232867,3.06,128.86,128.85,0.05137695]
[1764679233682,0.05069185,128.88,128.85,4.97137695]
[1764679233967,0.05069185,128.88,128.86,3.36]
[1764679239282,3.29069185,128.88,128.85,3.22137695]
[1764679240571,0.05069185,128.88,128.85,3.22137695]
[1764679243478,3.29069185,128.88,128.85,3.22137695]
[1764679245883,3.29069185,128.88,128.85,0.05137695]
[1764679246471,3.24,128.86,128.85,0.05137695]
[1764679246672,3.24,128.86,128.8,66.7]
[1764679246973,3.24,128.86,128.8,69.87]
[1764679247570,3.24,128.86,128.81,3.17]
[1764679247788,10.2259,128.84,128.82,0.05828592]
[1764679248278,10.2259,128.84,128.82,3.22828592]
[1764679249877,6.9864,128.83,128.82,0.05828592]
[1764679250180,10.2264,128.83,128.82,0.05828592]
[1764679253182,3.24,128.83,128.82,0.05828592]
[1764679254378,0.0560847,128.85,128.82,3.22828592]
[1764679255984,7.0413847,128.85,128.82,3.22828592]
[1764679256382,10.2259,128.84,128.82,0.05828592]
[1764679256583,0.0560847,128.85,128.82,3.22828592]
[1764679259487,0.0560847,128.85,128.83,3.17]
[1764679259990,7.0413847,128.85,128.83,3.17]
[1764679260691,10.2813847,128.85,128.82,9.47016571]
[1764679260988,3.24,128.84,128.82,3.22828592]
[1764679261189,10.2813847,128.85,128.82,3.22828592]
[1764679261390,10.2813847,128.85,128.82,12.64016571]
[1764679261982,6.9859,128.84,128.82,12.64016571]
[1764679262190,6.9859,128.84,128.83,9.41187979]
[1764679263090,6.9859,128.84,128.82,17.66331709]
[1764679264888,3.2960847,128.85,128.82,17.66331709]
[1764679265087,3.2960847,128.85,128.84,9.55305372]
[1764679266596,3.2960847,128.85,128.83,9.55305372]
[1764679269094,10.1058,128.84,128.83,9.55305372]
[1764679269294,3.12,128.83,128.82,9.61133964]
[1764679269999,10.1064,128.83,128.82,9.61133964]
[1764679270592,10.1075,128.81,128.8,14.43503117]
[1764679270993,3.12,128.84,128.8,14.43503117]
[1764679271593,10.1069,128.82,128.81,0.04945257]
[1764679274200,10.1069,128.82,128.81,14.48448374]
[1764679275100,10.1069,128.82,128.81,0.04945257]
[1764679280511,3.12,128.79,128.77,14.43503117]
[1764679280806,3.12,128.79,128.76,17.50503117]
[1764679281194,3.12,128.79,128.74,68.9908]
[1764679281195,3.12,128.78,128.74,3.07]
[1764679281604,0.05142397,128.77,128.75,3.12549378]
[1764679281904,0.05142397,128.77,128.75,17.56052495]
[1764679282306,7.04112397,128.77,128.75,3.12549378]
[1764679284109,10.16112397,128.77,128.75,0.05549378]
[1764679284808,6.9902,128.76,128.75,0.05549378]
[1764679285807,10.1102,128.76,128.75,0.05549378]
[1764679286904,6.9902,128.76,128.75,0.05549378]
[1764679288706,10.1102,128.76,128.75,0.05549378]
[1764679291209,76.7702,128.76,128.75,0.05549378]
[1764679292506,10.2724,128.72,128.71,14.43503117]
[1764679292723,3.28,128.72,128.7,17.79503117]
[1764679293009,3.28,128.73,128.7,17.79503117]
[1764679293203,6.9929,128.71,128.7,17.79503117]
[1764679295415,6.9929,128.71,128.7,3.36]
[1764679303614,6.9934,128.7,128.69,0.05177873]
[1764679303816,3.25,128.69,128.66,14.43503117]
[1764679304010,3.25,128.68,128.65,22.82603135]
[1764679304211,3.25,128.68,128.64,3.16]
[1764679304415,6.9948,128.68,128.65,3.16]
[1764679305015,7.04472201,128.68,128.65,3.21921868]
[1764679306611,3.25,128.66,128.65,0.05921868]
[1764679307017,6.9913,128.75,128.66,3.16]
[1764679307216,6.9913,128.75,128.71,3.16]
[1764679307415,108.7304,128.77,128.71,3.16]
[1764679308020,108.7304,128.77,128.73,0.05044229]
[1764679308021,0.05351216,128.75,128.73,0.05044229]
[1764679308220,6.9914,128.74,128.73,3.21044229]
[1764679308820,0.05351216,128.75,128.73,3.21044229]
[1764679309015,2.66351216,128.75,128.73,0.05044229]
[1764679310320,9.65451216,128.75,128.73,0.05044229]
[1764679310522,2.61,128.74,128.73,0.05044229]
[1764679311125,2.66351216,128.75,128.73,0.05044229]
[1764679311718,0.05351216,128.75,128.73,3.21044229]
[1764679314725,0.05351216,128.75,128.73,12.18190233]
[1764679314917,2.61,128.78,128.75,3.16]
[1764679315325,2.61,128.77,128.74,17.45613464]
[1764679315525,2.61,128.77,128.74,3.16]
[1764679315832,2.6589253,128.77,128.74,17.50789422]
[1764679317326,2.6589253,128.77,128.75,3.16]
[1764679317525,0.0489253,128.77,128.75,3.16]
[1764679321231,2.6589253,128.77,128.74,0.05175958]
[1764679321525,2.6589253,128.77,128.74,17.50789422]
[1764679322035,0.0489253,128.77,128.75,3.16]
[1764679322525,2.6589253,128.77,128.74,17.50789422]
[1764679323935,2.6589253,128.77,128.74,3.21175958]
[1764679324236,2.6589253,128.77,128.74,17.50789422]
[1764679324536,2.61,128.76,128.74,14.34789422]
[1764679325035,2.61,128.75,128.74,0.05175958]
[1764679326738,9.6007,128.75,128.74,0.05175958]
[1764679327140,2.61,128.74,128.71,84.35613464]
[1764679327327,2.61,128.74,128.71,14.29613464]
[1764679327531,2.61,128.74,128.7,14.29613464]
[1764679328137,2.66645482,128.73,128.71,0.05656237]
[1764679328338,9.65835482,128.73,128.71,0.05656237]
[1764679328537,2.62,128.72,128.71,0.05656237]
[1764679329045,9.6124,128.72,128.71,0.05656237]
[1764679331138,6.9938,128.7,128.68,3.21]
[1764679332140,9.67296772,128.7,128.68,3.26823439]
[1764679336144,9.67296772,128.7,128.68,0.05823439]
[1764679336842,2.67916772,128.7,128.68,0.05823439]
[1764679338940,2.67916772,128.7,128.68,3.26823439]
[1764679340334,2.67916772,128.7,128.68,17.56436903]
[1764679342842,2.67916772,128.7,128.68,0.05823439]
[1764679344444,2.62,128.69,128.68,0.05823439]
[1764679344637,2.62,128.69,128.64,40.96459499]
[1764679345254,2.62,128.67,128.64,3.21]
[1764679345749,2.67449839,128.67,128.64,3.26886108]
[1764679346846,2.62,128.66,128.64,3.26886108]
[1764679347652,2.62,128.66,128.62,14.29613464]
[1764679347848,2.62,128.65,128.6,3.21]
[1764679348045,2.62,128.65,128.61,3.21]
[1764679348352,2.62,128.68,128.63,3.21]
[1764679348752,2.67686697,128.67,128.64,3.26832584]
[1764679350844,9.67206697,128.67,128.64,3.26832584]
[1764679351241,0.05686697,128.67,128.64,3.26832584]
[1764679352055,2.67686697,128.67,128.64,3.26832584]
[1764679352251,0.05686697,128.67,128.64,3.26832584]
[1764679352452,0.05686697,128.67,128.64,17.56446048]
[1764679352754,0.05686697,128.67,128.65,3.21]
[1764679354156,0.05686697,128.67,128.65,24.50223464]
[1764679354345,0.05686697,128.67,128.66,3.21]
[1764679354547,5.7174343,128.73,128.66,3.21]
[1764679354754,2.68,128.72,128.66,3.21]
[1764679355450,0.05377904,128.7,128.69,3.21]
[1764679355850,2.73377904,128.7,128.68,0.04919304]
[1764679356155,9.72727904,128.7,128.68,0.04919304]
[1764679359352,2.73377904,128.7,128.68,0.04919304]
[1764679359663,0.05377904,128.7,128.68,3.22919304]
[1764679362958,0.05377904,128.7,128.68,10.22369304]
[1764679363151,0.05377904,128.7,128.69,3.18]
[1764679363352,0.05377904,128.7,128.69,10.174]
[1764679366361,0.05377904,128.7,128.69,24.47013464]
[1764679367863,2.74,128.77,128.73,3.18]
[1764679368061,2.74,128.77,128.71,14.34432008]
[1764679368256,2.74,128.77,128.7,17.52432008]
[1764679368464,2.74,128.77,128.71,3.18]
[1764679368857,2.74,128.74,128.73,0.05685716]
[1764679371770,0.04985045,128.75,128.73,3.23685716]
[1764679372967,2.78985045,128.75,128.73,3.23685716]
[1764679373859,9.7313,128.74,128.73,0.05685716]
[1764679374666,9.7313,128.74,128.69,17.52432008]
[1764679374868,2.74,128.73,128.7,3.18]
[1764679375868,2.74,128.73,128.7,17.58075605]
[1764679376370,2.74,128.73,128.7,3.23643597]
[1764679377370,2.74,128.73,128.7,17.58075605]
[1764679377675,2.74,128.73,128.7,3.23643597]
[1764679377975,9.732,128.73,128.7,0.05643597]
[1764679378175,3.14728475,128.75,128.7,0.05643597]
[1764679378176,2.74,128.72,128.7,0.05643597]
[1764679378369,2.79314206,128.72,128.7,0.05643597]
[1764679383782,2.79314206,128.72,128.7,3.23643597]
[1764679385077,2.79314206,128.72,128.7,0.05643597]
[1764679387873,9.78554206,128.72,128.7,0.05643597]
[1764679388280,2.74,128.71,128.7,0.05643597]
[1764679391084,9.7329,128.71,128.7,0.05643597]
[1764679407204,2.74,128.68,128.67,14.34432008]
[1764679407502,2.74,128.68,128.66,14.34432008]
[1764679408294,6.9951,128.67,128.66,14.39752276]
[1764679408694,9.7351,128.67,128.66,14.39752276]
[1764679411099,9.7351,128.67,128.66,0.05320268]
[1764679411499,9.7362,128.65,128.64,14.34432008]
[1764679411702,6.9962,128.65,128.64,17.52432008]
[1764679413308,9.7362,128.65,128.64,14.34432008]
[1764679413600,9.7362,128.65,128.63,17.57444616]
[1764679413799,9.7923479,128.65,128.63,17.57444616]
[1764679414701,9.7923479,128.65,128.64,3.18]
[1764679415401,9.7923479,128.65,128.63,17.57444616]
[1764679415606,7.0523479,128.65,128.64,3.18]
[1764679417004,0.0561479,128.65,128.64,3.18]
[1764679417408,2.74,128.71,128.65,3.26]
[1764679417699,9.734,128.7,128.67,17.63787969]
[1764679417906,9.734,128.7,128.68,3.26]
[1764679418201,9.734,128.7,128.68,17.63787969]
[1764679418420,7.04805157,128.7,128.69,3.26]
[1764679419105,0.05405157,128.7,128.69,3.26]
[1764679419896,2.79,128.78,128.7,3.29]
[1764679420097,2.79,128.78,128.74,3.29]
[1764679420403,2.79,128.76,128.72,3.29]
[1764679420609,2.79,128.73,128.71,17.64748353]
[1764679420898,2.79,128.73,128.71,3.34134203]
[1764679420899,2.84684915,128.73,128.71,3.34134203]
[1764679422094,2.84684915,128.73,128.71,0.05134203]
[1764679422299,9.83884915,128.73,128.71,0.05134203]
[1764679422503,2.79,128.72,128.71,0.05134203]
[1764679423108,7.04884915,128.73,128.71,0.05134203]
[1764679423109,0.05684915,128.73,128.71,5.3237054]
[1764679423308,0.05684915,128.73,128.72,3.29]
[1764679423504,0.05684915,128.73,128.72,17.64748353]
[1764679425109,0.05684915,128.73,128.72,3.29]
[1764679425712,0.05684915,128.73,128.72,17.64748353]
[1764679426906,0.05684915,128.73,128.72,3.29]
[1764679428721,9.7797,128.77,128.72,24.63968353]
[1764679428908,2.79,128.76,128.73,3.29]
[1764679429816,2.84238835,128.76,128.73,3.3416141]
[1764679431310,0.05238835,128.76,128.73,3.3416141]
[1764679432112,0.05238835,128.76,128.74,3.29]
[1764679435910,2.84238835,128.76,128.74,3.29]
[1764679438008,2.79,128.75,128.73,0.0516141]
[1764679438406,2.79,128.74,128.73,0.0516141]
[1764679438807,9.7813,128.74,128.73,0.0516141]
[1764679440617,9.7819,128.73,128.69,19.81613441]
[1764679440819,2.79,128.72,128.69,19.81613441]
[1764679441217,2.79,128.72,128.69,3.29]
[1764679441718,2.84468603,128.72,128.69,3.34268664]
[1764679442412,9.83708603,128.72,128.69,3.34268664]
[1764679444823,0.05468603,128.72,128.7,3.29]
[1764679445018,2.84468603,128.72,128.7,3.29]
[1764679453823,0.05468603,128.72,128.7,3.29]
[1764679454120,0.05468603,128.72,128.71,12.84223441]
[1764679455327,2.84468603,128.72,128.69,12.89492105]
[1764679455642,2.79,128.71,128.69,12.89492105]
[1764679455930,9.783,128.71,128.69,12.89492105]
[1764679459721,2.79,128.71,128.69,12.89492105]
[1764679460126,2.79,128.71,128.7,9.53223441]
[1764679460522,2.79,128.71,128.69,17.72017017]
[1764679460728,2.79,128.71,128.7,9.56771284]
[1764679461426,2.79,128.71,128.69,17.72017017]
[1764679462034,2.79,128.71,128.7,9.57262664]
[1764679462228,2.79,128.71,128.69,17.72017017]
[1764679463032,9.83708603,128.72,128.7,3.31]
[1764679463226,9.83708603,128.72,128.71,9.57917243]
[1764679464733,2.84468603,128.72,128.71,9.57917243]
[1764679468137,2.84468603,128.72,128.71,9.57680563]
[1764679468326,2.84468603,128.72,128.71,12.88680563]
[1764679468531,0.05468603,128.72,128.71,17.66748353]
[1764679469029,0.05468603,128.72,128.71,3.31]
[1764679469428,69.41,128.77,128.72,3.31]
[1764679469625,69.41,128.77,128.74,3.31]
[1764679470036,2.79,128.78,128.75,3.31]
[1764679470432,2.84311526,128.78,128.75,3.36850704]
[1764679471433,6.9901,128.77,128.75,3.36850704]
[1764679473030,6.9902,128.76,128.75,3.36850704]
[1764679474336,9.7802,128.76,128.75,3.36850704]
[1764679474534,9.7802,128.76,128.75,0.05850704]
[1764679478936,6.9902,128.76,128.75,3.28850704]
[1764679479136,7.04271526,128.78,128.75,3.28850704]
[1764679479452,9.83271526,128.78,128.75,3.28850704]
[1764679481743,2.79,128.77,128.75,3.28850704]
[1764679482138,9.7799,128.77,128.75,3.28850704]
[1764679487140,6.9899,128.77,128.75,0.05850704]
[1764679487348,9.7802,128.76,128.75,0.05850704]
[1764679498160,6.9918,128.74,128.71,14.35091]
[1764679498365,2.79,128.73,128.7,3.23]
[1764679499266,2.8399526,128.73,128.7,3.2868489]
[1764679499464,9.8318526,128.73,128.7,3.2868489]
[1764679500468,9.8318526,128.73,128.71,3.23]
[1764679501067,2.79,128.71,128.7,0.0568489]
[1764679501677,9.7829,128.71,128.7,0.0568489]
[1764679505170,9.7829,128.71,128.69,0.49715]
[1764679505374,2.79,128.68,128.66,3.23]
[1764679505974,6.9942,128.69,128.66,3.23]
[1764679506174,6.9942,128.69,128.68,3.23]
[1764679506373,7.04610785,128.69,128.68,3.23]
[1764679507181,0.05190785,128.69,128.68,3.23]
[1764679509085,6.9923,128.73,128.69,3.29]
[1764679509272,6.9923,128.73,128.7,3.29]
[1764679509886,9.781,128.75,128.71,3.29]
[1764679510184,2.84941396,128.74,128.72,3.34019985]
[1764679511078,0.05941396,128.74,128.72,3.34019985]
[1764679511377,0.05941396,128.74,128.73,3.29]
[1764679512183,0.05941396,128.74,128.73,17.68363864]
[1764679512480,0.05941396,128.74,128.73,3.29]
[1764679517688,2.79,128.72,128.68,3.29]
[1764679518284,6.9935,128.7,128.68,3.29]
[1764679518687,7.04336674,128.7,128.68,3.33911923]
[1764679520989,0.04986674,128.7,128.68,3.33911923]
[1764679530894,2.83986674,128.7,128.68,3.33911923]
[1764679531998,7.04336674,128.7,128.68,3.33911923]
[1764679536196,9.83336674,128.7,128.68,3.33911923]
[1764679537698,9.83336674,128.7,128.68,17.76342831]
[1764679541301,9.83336674,128.7,128.69,14.42430908]
[1764679542916,7.04336674,128.7,128.69,17.48430908]
[1764679544207,9.83336674,128.7,128.69,17.48430908]
[1764679544401,9.83336674,128.7,128.69,3.06]
[1764679544602,9.83336674,128.7,128.69,17.48430908]
[1764679548211,7.04336674,128.7,128.69,17.48430908]
[1764679550609,9.83336674,128.7,128.69,14.42430908]
[1764679550914,9.784,128.69,128.68,14.47342831]
[1764679552120,9.784,128.69,128.68,17.53342831]
[1764679556421,9.784,128.69,128.68,2.831e-05]
[1764679556722,6.9962,128.65,128.64,3.06]
[1764679559030,0.04900391,128.66,128.64,3.06]
[1764679562221,0.04900391,128.66,128.64,22.22359018]
[1764679562533,0.04900391,128.66,128.65,3.06]
[1764679562933,9.8329,128.72,128.66,3.06]
[1764679563432,2.84,128.71,128.66,3.06]
[1764679564024,2.89631271,128.7,128.68,3.06]
[1764679564527,9.88981271,128.7,128.68,3.06]
[1764679566125,7.04981271,128.7,128.68,3.06]
[1764679566320,9.88981271,128.7,128.68,3.06]
[1764679569132,2.84,128.69,128.68,3.06]
[1764679569430,2.84,128.69,128.67,0.05040045]
[1764679569636,9.8341,128.69,128.67,0.05040045]
[1764679569934,2.84,128.68,128.67,0.05040045]
[1764679571834,9.8345,128.68,128.67,0.05040045]
[1764679573337,2.89631271,128.7,128.67,3.24040045]
[1764679574334,9.88981271,128.7,128.67,3.24040045]
[1764679576434,9.88981271,128.7,128.69,14.42215185]
[1764679577239,0.05631271,128.7,128.69,17.61215185]
[1764679577831,9.88971271,128.7,128.69,14.42215185]
[1764679579038,9.88971271,128.7,128.68,17.61215185]
[1764679581141,0.05631271,128.7,128.69,3.19]
[1764679581340,0.05631271,128.7,128.69,17.61215185]
[1764679583939,0.05631271,128.7,128.69,3.19]
[1764679584247,0.05631271,128.7,128.69,17.59745372]
[1764679586546,0.05631271,128.7,128.69,3.19]
[1764679586741,0.05631271,128.7,128.69,17.5786809]
[1764679586941,111.6084,128.79,128.7,3.19]
[1764679587142,111.6084,128.79,128.76,3.19]
[1764679587538,2.89,128.78,128.76,3.19]
[1764679587740,111.6084,128.79,128.76,3.19]
[1764679587943,111.66667291,128.79,128.76,3.24377801]
[1764679588144,2.89,128.78,128.76,3.24377801]
[1764679588447,6.9899,128.77,128.76,3.24377801]
[1764679589147,9.8799,128.77,128.76,0.05377801]
[1764679594154,6.9899,128.77,128.76,0.05377801]
[1764679594351,9.8799,128.77,128.76,0.05377801]
[1764679610766,9.8799,128.77,128.76,0.00377801]
[1764679610959,2.84,128.74,128.71,3.25]
[1764679611759,2.84,128.73,128.7,17.62049365]
[1764679611964,2.89209348,128.73,128.7,0.05756927]
[1764679612465,9.8329,128.71,128.7,0.05756927]
[1764679612964,9.7746,128.68,128.65,17.62049365]
[1764679613165,2.78,128.67,128.65,17.62049365]
[1764679613560,6.9946,128.68,128.66,3.25]
[1764679614169,7.04642063,128.68,128.66,3.30104523]
[1764679614869,9.82642063,128.68,128.66,3.30104523]
[1764679616065,9.82642063,128.68,128.66,0.05104523]
[1764679616562,2.78,128.67,128.66,0.05104523]
[1764679627183,9.7751,128.67,128.66,0.05104523]
[1764679632685,6.9983,128.61,128.6,26.86928427]
[1764679633185,9.7283,128.61,128.6,23.75928427]
[1764679633387,6.9991,128.6,128.58,3.11]
[1764679633587,7.05695703,128.6,128.58,3.15066742]
[1764679633888,7.05695703,128.6,128.59,3.11]
[1764679635587,0.05785703,128.6,128.59,3.11]
[1764679637389,7.05675703,128.6,128.59,3.11]
[1764679640193,7.05675703,128.6,128.59,4.67]
[1764679641187,7.05675703,128.6,128.59,3.11]
[1764679641991,0.05785703,128.6,128.59,3.11]
[1764679642692,2.78785703,128.6,128.58,26.78855535]
[1764679642993,0.05785703,128.6,128.59,3.11]
[1764679656303,2.74,128.59,128.58,14.41116107]
[1764679656505,2.74,128.59,128.58,0.04066742]
[1764679656704,4.72501575,128.59,128.58,0.04066742]
[1764679658310,11.72441575,128.59,128.58,0.04066742]
[1764679660807,2.69,128.56,128.55,22.94052951]
[1764679661008,2.69,128.56,128.53,24.50309365]
[1764679661208,9.6906,128.57,128.55,3.13]
[1764679661716,9.74791998,128.57,128.55,3.13]
[1764679662517,9.74791998,128.57,128.55,26.86387537]
[1764679664719,2.69,128.56,128.55,23.73387537]
[1764679664911,2.69,128.56,128.54,17.50049365]
[1764679666414,9.6913,128.56,128.54,17.50049365]
[1764679667514,9.6913,128.56,128.54,41.18254639]
[1764679670512,7.05781998,128.57,128.55,3.13]
[1764679670921,9.74781998,128.57,128.55,3.13]
[1764679671818,7.0011,128.56,128.55,3.13]
[1764679672822,9.6911,128.56,128.55,3.13]
[1764679673744,7.0011,128.56,128.55,3.13]
[1764679676318,9.6911,128.56,128.55,3.13]
[1764679678724,7.0016,128.55,128.54,41.18254639]
[1764679678929,2.69,128.54,128.51,17.50049365]
[1764679679116,2.74031024,128.54,128.51,41.12739132]
[1764679679322,2.74031024,128.54,128.51,17.50049365]
[1764679680325,7.0027,128.53,128.52,3.13]
[1764679680827,2.69,128.52,128.5,37.54171715]
[1764679681123,2.74425688,128.52,128.5,26.3012235]
[1764679681524,2.69,128.51,128.49,3.13]
[1764679682229,7.0047,128.5,128.49,17.50049365]
[1764679682429,7.0047,128.5,128.49,3.13]
[1764679684829,7.0047,128.5,128.49,26.6999052]
[1764679688832,7.0047,128.5,128.49,3.13]
[1764679689039,9.7049,128.49,128.48,3.08]
[1764679689236,2.7,128.49,128.47,26.87768365]
[1764679689432,2.75363822,128.49,128.47,3.08]
[1764679690342,7.0054,128.48,128.47,3.08]
[1764679691733,7.006,128.47,128.46,41.20337266]
[1764679691934,7.006,128.47,128.46,17.45049365]
[1764679695840,7.006,128.47,128.46,40.86010947]
[1764679696439,7.006,128.47,128.46,26.48961582]
[1764679697940,9.706,128.47,128.46,23.40961582]
[1764679698240,9.706,128.47,128.44,81.4355094]
[1764679698241,7.0071,128.45,128.44,3.08]
[1764679698630,0.05877353,128.46,128.45,3.08]
[1764679699130,0.05877353,128.46,128.45,25.93801992]
[1764679700437,7.06527353,128.46,128.45,25.93801992]
[1764679703138,0.05877353,128.46,128.45,27.92303567]
[1764679703343,7.0057,128.48,128.46,3.2]
[1764679703841,9.7647,128.5,128.46,3.2]
[1764679704247,0.05133768,128.49,128.47,3.25686749]
[1764679710151,2.76,128.55,128.48,3.2]
[1764679710945,2.81,128.54,128.48,3.2]
[1764679711253,0.04910657,128.52,128.51,3.2]
[1764679720466,2.84,128.57,128.53,3.32]
[1764679720660,2.84,128.57,128.54,3.32]
[1764679721261,2.89537552,128.57,128.54,3.37130022]
[1764679722368,9.89637552,128.57,128.54,3.37130022]
[1764679723462,2.84,128.56,128.54,0.05130022]
[1764679724471,9.8416,128.55,128.54,0.05130022]
[1764679727572,2.84,128.56,128.54,3.37130022]
[1764679728973,9.8411,128.56,128.54,3.37130022]
[1764679730770,2.84,128.56,128.54,3.37130022]
[1764679730979,0.05537552,128.57,128.54,3.37130022]
[1764679732287,0.05537552,128.57,128.55,14.41202566]
[1764679732476,0.05537552,128.57,128.56,3.32]
[1764679735479,2.89537552,128.57,128.54,14.46332588]
[1764679735678,2.89537552,128.57,128.54,3.37130022]
[1764679736279,9.8412,128.56,128.54,3.37130022]
[1764679738482,9.8416,128.55,128.54,0.05130022]
[1764679740182,7.0016,128.55,128.54,3.37130022]
[1764679742783,7.0016,128.55,128.54,0.05130022]
[1764679743081,9.8416,128.55,128.54,0.05130022]
[1764679750189,2.84,128.55,128.54,0.05130022]
[1764679750585,2.91537552,128.57,128.54,3.15130022]
[1764679753291,0.05537552,128.57,128.54,14.46332588]
[1764679753485,0.05537552,128.57,128.56,3.1]
[1764679756491,0.05537552,128.57,128.56,17.51202566]
[1764679757193,0.05537552,128.57,128.56,3.1]